bitfinex/quotes_BTCUSD_20241107
["timestamp","ask_amount","ask_price","bid_price","bid_amount"]
[1731008195146,0.000743,76314.0,76304.0,0.00229798]
[1731008195611,0.000743,76314.0,76297.0,0.1]
[1731008195821,0.0807,76296.0,76290.0,0.03395385]
[1731008196031,0.0807,76296.0,76295.0,0.19677938]
[1731008196171,0.083343,76305.0,76291.0,0.24177388]
[1731008196370,0.19677938,76304.0,76299.0,0.22283596]
[1731008196606,0.000743,76305.0,76300.0,0.13486215]
[1731008196811,0.000743,76305.0,76300.0,0.15117894]
[1731008196812,0.19677938,76303.0,76300.0,0.15117894]
[1731008197013,0.000743,76305.0,76301.0,0.1]
[1731008197252,0.000743,76305.0,76303.0,0.1]
[1731008197458,0.000743,76305.0,76304.0,0.32283596]
[1731008198594,0.02003298,76305.0,76304.0,0.32283596]
[1731008199014,0.02003298,76305.0,76304.0,0.1]
[1731008199218,0.0826,76304.0,76301.0,0.03488902]
[1731008199394,0.01928998,76303.0,76302.0,0.1513808]
[1731008199607,0.01928998,76303.0,76302.0,0.2513808]
[1731008199808,0.0274664,76303.0,76302.0,0.1]
[1731008200328,0.04678294,76303.0,76302.0,0.1]
[1731008200935,0.04678203,76303.0,76302.0,0.1]
[1731008201308,0.04678203,76303.0,76302.0,0.10229408]
[1731008202320,0.05172444,76303.0,76302.0,0.00229408]
[1731008202521,0.19214234,76303.0,76302.0,0.00229408]
[1731008202736,0.00494241,76294.0,76290.0,0.000834]
[1731008202920,0.05495891,76293.0,76290.0,0.000834]
[1731008203142,0.00494241,76294.0,76291.0,0.00248498]
[1731008203143,0.0273805,76292.0,76291.0,0.00248498]
[1731008203370,0.01635474,76292.0,76291.0,0.00248498]
[1731008203840,0.02129715,76292.0,76291.0,0.00248498]
[1731008204055,0.00494241,76291.0,76290.0,0.000834]
[1731008204263,0.02129715,76291.0,76290.0,0.000834]
[1731008204806,0.02129715,76291.0,76290.0,0.00342694]
[1731008204807,0.10049715,76291.0,76290.0,0.00342694]
[1731008204910,0.10049715,76291.0,76290.0,0.000834]
[1731008205139,0.23273817,76291.0,76290.0,0.000834]
[1731008205383,0.2475623,76291.0,76290.0,0.000834]
[1731008205616,0.26074117,76291.0,76290.0,0.000834]
[1731008207248,0.26074117,76291.0,76247.0,0.005]
[1731008207249,0.00494241,76270.0,76255.0,0.22964501]
[1731008207470,0.00494241,76270.0,76247.0,0.22964501]
[1731008207471,0.1453623,76270.0,76247.0,0.22964501]
[1731008207687,0.00494241,76264.0,76261.0,0.2303578]
[1731008207904,0.1236,76271.0,76261.0,0.2303578]
[1731008207905,0.00817887,76263.0,76261.0,0.2303578]
[1731008208113,0.20177938,76286.0,76262.0,0.23226754]
[1731008208114,0.00494241,76280.0,76262.0,0.23226754]
[1731008208314,0.0774,76281.0,76262.0,0.23226754]
[1731008208315,0.19677938,76278.0,76270.0,0.22964501]
[1731008208570,0.20496027,76277.0,76270.0,0.22964501]
[1731008208769,0.00818089,76276.0,76270.0,0.22964501]
[1731008209087,0.00818089,76275.0,76271.0,0.1]
[1731008209256,0.00494241,76278.0,76271.0,0.1]
[1731008209257,0.00818089,76274.0,76271.0,0.1]
[1731008209468,0.00818089,76273.0,76271.0,0.1]
[1731008209688,0.00494241,76278.0,76271.0,0.1]
[1731008209893,0.00817918,76277.0,76271.0,0.1]
[1731008210037,0.00817918,76276.0,76271.0,0.1]
[1731008210233,0.00817918,76275.0,76271.0,0.1]
[1731008210450,0.00817918,76274.0,76271.0,0.1]
[1731008210676,0.00817918,76273.0,76271.0,0.1]
[1731008210868,0.00817918,76272.0,76271.0,0.1]
[1731008211729,0.00817918,76272.0,76261.0,0.03357842]
[1731008211730,0.00817918,76272.0,76262.0,0.1]
[1731008211973,0.00817918,76271.0,76262.0,0.29677938]
[1731008212145,0.00494241,76278.0,76263.0,0.0145169]
[1731008212376,0.00494241,76270.0,76248.0,0.22964501]
[1731008212577,0.01635936,76269.0,76262.0,0.20403783]
[1731008212760,0.00494241,76270.0,76263.0,0.0145169]
[1731008212761,0.00817968,76268.0,76263.0,0.0145169]
[1731008212961,0.02757677,76267.0,76264.0,0.22964501]
[1731008213166,0.02757774,76266.0,76265.0,0.0145169]
[1731008213386,0.02757774,76266.0,76264.0,0.22964501]
[1731008213590,0.02757774,76265.0,76264.0,0.22964501]
[1731008213786,0.02757774,76265.0,76264.0,0.32964501]
[1731008213986,0.19677938,76275.0,76265.0,0.1]
[1731008214189,0.04696822,76274.0,76266.0,0.00988049]
[1731008214450,0.19677938,76275.0,76266.0,0.01713894]
[1731008214451,0.02757378,76273.0,76266.0,0.01713894]
[1731008214653,0.02757378,76272.0,76266.0,0.0145169]
[1731008214775,0.02757378,76271.0,76266.0,0.0145169]
[1731008214991,0.0774,76281.0,76266.0,0.0145169]
[1731008214992,0.02757378,76270.0,76268.0,0.1]
[1731008215169,0.00805793,76269.0,76268.0,0.10262192]
[1731008215488,0.00805793,76269.0,76268.0,0.1]
[1731008216142,0.00805793,76269.0,76268.0,0.10243058]
[1731008216374,0.0483,76282.0,76268.0,0.10243058]
[1731008216591,0.02757032,76281.0,76273.0,0.1]
[1731008216791,0.19677938,76286.0,76281.0,0.1]
[1731008216919,0.19677938,76286.0,76281.0,0.23224102]
[1731008217348,0.047,76293.0,76282.0,0.00241898]
[1731008217850,0.19677938,76293.0,76283.0,0.00262143]
[1731008218036,0.19677938,76293.0,76283.0,0.0024204]
[1731008218230,0.19677938,76293.0,76281.0,0.23224102]
[1731008218493,0.19677938,76293.0,76284.0,0.00242005]
[1731008218692,0.19677938,76293.0,76281.0,0.23224102]
[1731008218937,0.00494241,76304.0,76289.0,0.1]
[1731008219139,0.046643,76305.0,76289.0,0.1]
[1731008219140,0.20172179,76302.0,76289.0,0.1]
[1731008219342,0.19677938,76302.0,76290.0,0.00503269]
[1731008219749,0.19677938,76302.0,76290.0,0.00241151]
[1731008220526,0.00494241,76304.0,76290.0,0.13927381]
[1731008220906,0.046643,76305.0,76290.0,0.13927381]
[1731008220907,0.6953,76303.0,76293.0,0.007]
[1731008221106,0.6953,76304.0,76303.0,0.32964501]
[1731008221461,0.6953,76304.0,76303.0,0.33204681]
[1731008222458,0.6953,76304.0,76303.0,0.46428783]
[1731008222872,0.6953,76304.0,76303.0,0.33204681]
[1731008223353,0.6953,76304.0,76303.0,0.15377243]
[1731008223554,0.6953,76304.0,76303.0,0.25377243]
[1731008224887,0.6953,76304.0,76303.0,0.03709943]
[1731008225923,0.6953,76304.0,76303.0,0.19413982]
[1731008226159,0.6953,76304.0,76303.0,0.32638084]
[1731008226386,0.000743,76305.0,76304.0,0.1]
[1731008226604,0.000743,76305.0,76304.0,0.23224102]
[1731008226798,0.000743,76305.0,76304.0,0.23442114]
[1731008227004,0.000743,76305.0,76304.0,0.23642114]
[1731008227208,0.000743,76305.0,76304.0,0.23704176]
[1731008227669,0.000743,76305.0,76304.0,0.23442114]
[1731008227856,0.000743,76305.0,76304.0,0.2370418]
[1731008228487,0.000743,76305.0,76304.0,0.23442114]
[1731008229475,0.000743,76305.0,76304.0,0.46389561]
[1731008230964,0.000743,76305.0,76304.0,0.33165459]
[1731008231465,0.000743,76305.0,76304.0,0.00218012]
[1731008238749,0.00568541,76305.0,76304.0,0.00218012]
[1731008239132,0.00494241,76300.0,76279.0,0.22947447]
[1731008239337,0.00494241,76300.0,76291.0,0.19677938]
[1731008239497,0.13214241,76291.0,76284.0,0.19677938]
[1731008239696,0.13214241,76291.0,76290.0,0.03485768]
[1731008239923,0.1272,76291.0,76290.0,0.0031264]
[1731008240137,0.000743,76305.0,76290.0,0.000834]
[1731008240138,0.0765,76301.0,76290.0,0.000834]
[1731008240308,0.000743,76305.0,76296.0,0.22947447]
[1731008240508,0.000743,76305.0,76297.0,0.00262097]
[1731008240509,0.19677938,76304.0,76297.0,0.00262097]
[1731008240893,0.000743,76305.0,76297.0,0.10262097]
[1731008241192,0.000743,76305.0,76304.0,0.32947447]
[1731008241347,0.000743,76305.0,76304.0,0.46171549]
[1731008241559,0.000743,76305.0,76304.0,0.46371549]
[1731008242617,0.000743,76305.0,76304.0,0.46171549]
[1731008244072,0.000743,76305.0,76304.0,0.46371549]
[1731008244805,0.000743,76305.0,76304.0,0.46171549]
[1731008246048,0.000743,76305.0,76304.0,0.46380171]
[1731008248444,0.000743,76305.0,76304.0,0.23432724]
[1731008248695,0.000743,76305.0,76304.0,0.00208622]
[1731008248908,0.000743,76305.0,76300.0,0.22947447]
[1731008249078,0.000743,76305.0,76301.0,0.13431728]
[1731008249501,0.000743,76305.0,76304.0,0.1521847]
[1731008249633,0.000743,76305.0,76304.0,0.25425989]
[1731008250641,0.000743,76305.0,76304.0,0.39254952]
[1731008250843,0.000743,76305.0,76304.0,0.38992883]
[1731008251044,0.000743,76305.0,76304.0,0.39154031]
[1731008251254,0.000743,76305.0,76304.0,0.23657713]
[1731008251534,0.000743,76305.0,76304.0,0.38792883]
[1731008252519,0.000743,76314.0,76311.0,0.002]
[1731008252715,0.19677938,76322.0,76311.0,0.002]
[1731008252716,0.000743,76349.0,76316.0,0.005]
[1731008252919,0.40494241,76348.0,76322.0,0.1]
[1731008253137,0.01017941,76348.0,76322.0,0.23691268]
[1731008253926,0.00494241,76348.0,76322.0,0.23691268]
[1731008254132,0.00494241,76347.0,76322.0,0.23691268]
[1731008255067,0.00072157,76323.0,76322.0,0.23691268]
[1731008255472,0.00072157,76323.0,76322.0,0.23429265]
[1731008257077,0.19677938,76331.0,76322.0,0.23429265]
[1731008257319,0.19677938,76331.0,76323.0,0.13224102]
[1731008257649,0.19677938,76331.0,76323.0,0.23428851]
[1731008258526,0.00494241,76346.0,76323.0,0.23428851]
[1731008258933,0.00494241,76346.0,76323.0,0.23690843]
[1731008260622,0.00494241,76346.0,76323.0,0.23628851]
[1731008260834,0.00494241,76346.0,76323.0,0.23428851]
[1731008262798,0.20172179,76341.0,76323.0,0.23428851]
[1731008263030,0.20172179,76341.0,76323.0,0.25339919]
[1731008263262,0.00494241,76340.0,76323.0,0.25339919]
[1731008263932,0.00534241,76339.0,76323.0,0.25339919]
[1731008264589,0.00568841,76328.0,76323.0,0.00204749]
[1731008265012,0.00568841,76328.0,76323.0,0.19677938]
[1731008265013,0.000746,76328.0,76323.0,0.19677938]
[1731008265233,0.000746,76328.0,76323.0,0.13784988]
[1731008265467,0.000746,76328.0,76323.0,0.13688976]
[1731008265687,0.000746,76328.0,76323.0,0.00202853]
[1731008265906,0.000746,76328.0,76323.0,0.2513517]
[1731008266120,0.000746,76328.0,76323.0,0.25337792]
[1731008266783,0.000746,76328.0,76323.0,0.10202622]
[1731008267001,0.000746,76328.0,76323.0,0.15337792]
[1731008268484,0.00568541,76324.0,76323.0,0.15337792]
[1731008268697,0.000743,76324.0,76323.0,0.15337792]
[1731008269799,0.000743,76324.0,76323.0,0.00202622]
[1731008270020,0.000743,76324.0,76323.0,0.25337792]
[1731008270234,0.000743,76324.0,76323.0,0.2513517]
[1731008270444,0.13208541,76324.0,76323.0,0.10202801]
[1731008271004,0.13208541,76324.0,76323.0,0.00202801]
[1731008271349,0.13208541,76324.0,76320.0,0.1]
[1731008271547,0.13208541,76324.0,76323.0,0.00202895]
[1731008271746,0.13208541,76324.0,76320.0,0.1]
[1731008271973,0.13208541,76324.0,76321.0,0.00203117]
[1731008272922,0.13208541,76324.0,76323.0,0.001666]
[1731008273152,0.13208541,76324.0,76323.0,0.00361946]
[1731008273344,0.13208541,76324.0,76323.0,0.001666]
[1731008273848,0.127143,76324.0,76323.0,0.00362155]
[1731008274254,0.13208541,76324.0,76323.0,0.00362155]
[1731008275961,0.127143,76324.0,76323.0,0.00362155]
[1731008276162,0.000743,76324.0,76323.0,0.00362155]
[1731008276364,0.000743,76324.0,76323.0,0.13848273]
[1731008276652,0.000743,76324.0,76323.0,0.23848273]
[1731008277035,0.000743,76324.0,76323.0,0.23586257]
[1731008278887,0.000743,76324.0,76323.0,0.24848255]
[1731008279114,0.000743,76324.0,76323.0,0.24848231]
[1731008280104,0.000746,76328.0,76326.0,0.005]
[1731008280305,0.000746,76328.0,76327.0,0.38815797]
[1731008280582,0.000746,76328.0,76327.0,0.38553825]
[1731008281532,0.000746,76328.0,76327.0,0.39553825]
[1731008281899,0.000746,76328.0,76327.0,0.15329723]
[1731008282094,0.125146,76328.0,76327.0,0.00194553]
[1731008282309,0.125146,76328.0,76323.0,0.001666]
[1731008282505,0.125146,76328.0,76324.0,0.00199663]
[1731008283341,0.125146,76328.0,76324.0,0.10199663]
[1731008283744,0.13008841,76328.0,76324.0,0.00199663]
[1731008283949,0.00494241,76325.0,76324.0,0.00199663]
[1731008285563,0.25978343,76325.0,76324.0,0.00199663]
[1731008285975,0.00494241,76324.0,76323.0,0.001666]
[1731008286130,0.13718343,76324.0,76323.0,0.001666]
[1731008287657,0.21948343,76324.0,76323.0,0.001666]
[1731008287884,0.26648343,76324.0,76323.0,0.001666]
[1731008288156,0.30448343,76324.0,76323.0,0.001666]
[1731008288380,0.00494241,76307.0,76304.0,0.000833]
[1731008288596,0.00494241,76307.0,76304.0,0.1521847]
[1731008288816,0.00494241,76307.0,76306.0,0.23140868]
[1731008289044,0.00494241,76307.0,76306.0,0.0346293]
[1731008289394,0.1275,76309.0,76304.0,0.000833]
[1731008289395,0.00494241,76305.0,76304.0,0.000833]
[1731008290806,0.00494241,76307.0,76304.0,0.000833]
[1731008290963,0.00494241,76305.0,76304.0,0.000833]
[1731008291733,0.23758343,76305.0,76304.0,0.000833]
[1731008291943,0.23758343,76305.0,76255.0,0.005]
[1731008291944,0.13134241,76291.0,76255.0,0.005]
[1731008292332,0.13134241,76291.0,76254.0,0.20177938]
[1731008292333,0.30158343,76291.0,76265.0,0.34813108]
[1731008292464,0.30158343,76291.0,76275.0,0.03363071]
[1731008292869,0.26358343,76291.0,76289.0,0.1513517]
[1731008293095,0.26858343,76291.0,76283.0,0.1513517]
[1731008293456,0.26358343,76291.0,76279.0,0.1513517]
[1731008294302,0.26358343,76291.0,76285.0,0.0339385]
[1731008294652,0.13134241,76291.0,76285.0,0.2852902]
[1731008295016,0.00494241,76296.0,76290.0,0.03610446]
[1731008295208,0.0813,76299.0,76296.0,0.1]
[1731008295359,0.00494241,76297.0,76296.0,0.1]
[1731008296593,0.00494241,76291.0,76290.0,0.000834]
[1731008296999,0.00492276,76291.0,76290.0,0.000834]
[1731008298009,0.0813,76299.0,76290.0,0.000834]
[1731008298010,0.00492276,76297.0,76290.0,0.000834]
[1731008298190,0.00492276,76292.0,76290.0,0.000834]
[1731008298392,0.00492276,76293.0,76290.0,0.000834]
[1731008298617,0.00492276,76292.0,76290.0,0.000834]
[1731008298933,0.00492276,76293.0,76290.0,0.000834]
[1731008299247,0.08622276,76299.0,76290.0,0.000834]
[1731008299478,0.08622276,76299.0,76297.0,0.1]
[1731008299860,0.00492276,76298.0,76297.0,0.1]
[1731008300459,0.00492276,76298.0,76291.0,0.1]
[1731008300623,0.00492276,76298.0,76293.0,0.1]
[1731008301238,0.00492276,76298.0,76296.0,0.1]
[1731008301448,0.00492276,76308.0,76297.0,0.4803721]
[1731008301606,0.0795,76318.0,76307.0,0.2513517]
[1731008301809,0.19677938,76312.0,76308.0,0.10262076]
[1731008302058,0.00492276,76314.0,76308.0,0.1]
[1731008302446,0.0795,76318.0,76308.0,0.1]
[1731008302447,0.08442276,76318.0,76308.0,0.1]
[1731008302815,0.0795,76318.0,76309.0,0.1]
[1731008303022,0.00492276,76318.0,76309.0,0.10262062]
[1731008303242,0.00492276,76318.0,76310.0,0.00227224]
[1731008303422,0.00492276,76318.0,76311.0,0.00262058]
[1731008303784,0.00492276,76318.0,76312.0,0.00226467]
[1731008306021,0.000743,76329.0,76314.0,0.2513517]
[1731008306209,0.19677938,76327.0,76316.0,0.1]
[1731008306409,0.000743,76329.0,76317.0,0.13224102]
[1731008306629,0.000743,76329.0,76318.0,0.1]
[1731008306878,0.000743,76329.0,76318.0,0.23224102]
[1731008307080,0.000743,76329.0,76319.0,0.00226549]
[1731008307284,0.00492276,76323.0,76319.0,0.00226549]
[1731008307638,0.00492276,76323.0,76318.0,0.1]
[1731008307639,0.00492276,76323.0,76309.0,0.1]
[1731008307839,0.00492276,76323.0,76320.0,0.00213364]
[1731008308039,0.00492276,76323.0,76306.0,0.19677938]
[1731008308596,0.00492276,76323.0,76307.0,0.00213981]
[1731008310168,0.00492276,76323.0,76314.0,0.19677938]
[1731008310378,0.00492276,76323.0,76315.0,0.10213601]
[1731008312008,0.00492276,76323.0,76315.0,0.00213601]
[1731008312213,0.00066876,76328.0,76315.0,0.00213601]
[1731008312434,0.00066876,76328.0,76309.0,0.1]
[1731008312634,0.00066876,76328.0,76316.0,0.00214168]
[1731008312836,0.00066876,76328.0,76315.0,0.1]
[1731008313041,0.00066876,76328.0,76317.0,0.0021412]
[1731008313245,0.00066876,76328.0,76316.0,0.00214168]
[1731008313463,0.00066876,76328.0,76318.0,0.00213001]
[1731008313712,0.00066876,76328.0,76319.0,0.00212953]
[1731008313933,0.3290204,76327.0,76307.0,0.1]
[1731008314146,0.005,76325.0,76320.0,0.00212906]
[1731008314355,0.13224102,76324.0,76314.0,0.19677938]
[1731008315339,0.13224102,76324.0,76315.0,0.1]
[1731008315556,0.023,76322.0,76315.0,0.00212953]
[1731008315759,0.13224102,76321.0,76307.0,0.1]
[1731008315999,0.13224102,76321.0,76316.0,0.00214571]
[1731008316134,0.13224102,76321.0,76315.0,0.1]
[1731008316340,0.13224102,76321.0,76317.0,0.00214476]
[1731008316635,0.13224102,76321.0,76315.0,0.1]
[1731008316838,0.13224102,76321.0,76318.0,0.00214429]
[1731008317044,0.13224102,76321.0,76315.0,0.1]
[1731008317250,0.1284,76327.0,76320.0,0.19677938]
[1731008317451,0.1284,76327.0,76319.0,8.2e-05]
[1731008317683,0.1284,76327.0,76321.0,0.00214571]
[1731008317879,0.1284,76327.0,76320.0,0.00214619]
[1731008322350,0.13224102,76326.0,76320.0,0.00214619]
[1731008324475,0.004918,76322.0,76320.0,0.00214619]
[1731008324703,0.13224102,76321.0,76320.0,0.00214619]
[1731008325023,0.13224102,76321.0,76315.0,0.001668]
[1731008328542,0.1275,76317.0,76315.0,0.001668]
[1731008328738,0.13224102,76316.0,76315.0,0.001668]
[1731008329285,0.13724102,76316.0,76315.0,0.001668]
[1731008329495,0.17015902,76316.0,76315.0,0.001668]
[1731008329689,0.20012492,76316.0,76315.0,0.001668]
[1731008329934,0.17015902,76316.0,76315.0,0.001668]
[1731008331624,0.20410692,76316.0,76315.0,0.001668]
[1731008331865,0.2172842,76316.0,76315.0,0.001668]
[1731008332020,0.22546148,76316.0,76315.0,0.001668]
[1731008332654,0.2172842,76316.0,76315.0,0.001668]
[1731008332858,0.4942359,76316.0,76315.0,0.001668]
[1731008333056,0.027918,76299.0,76298.0,0.19677938]
[1731008333264,0.16015902,76299.0,76298.0,0.19677938]
[1731008333498,0.16015902,76299.0,76298.0,0.19894464]
[1731008333669,0.13224102,76299.0,76291.0,0.00167]
[1731008333878,0.13224102,76299.0,76298.0,0.00216526]
[1731008334079,0.13224102,76299.0,76291.0,0.00167]
[1731008334519,0.13224102,76299.0,76292.0,0.00216811]
[1731008335280,0.13224102,76299.0,76291.0,0.00167]
[1731008335589,0.15524102,76298.0,76291.0,0.00167]
[1731008337725,0.1281,76303.0,76291.0,0.00167]
[1731008337942,0.13224102,76302.0,76292.0,0.00219229]
[1731008338130,0.005,76299.0,76291.0,0.00167]
[1731008338488,0.13224102,76298.0,76292.0,0.19677938]
[1731008338692,0.13224102,76298.0,76291.0,0.00167]
[1731008338913,0.13224102,76298.0,76293.0,0.00218944]
[1731008339058,0.13214702,76298.0,76291.0,0.00167]
[1731008340563,0.1281,76303.0,76296.0,0.19677938]
[1731008340838,0.1281,76303.0,76297.0,0.00218737]
[1731008341313,0.1281,76303.0,76291.0,0.001752]
[1731008341489,0.13224102,76302.0,76291.0,0.00167]
[1731008341639,0.13224102,76302.0,76292.0,0.00220158]
[1731008341836,0.13224102,76302.0,76291.0,0.00167]
[1731008342263,0.004918,76299.0,76291.0,0.00167]
[1731008342462,0.15524102,76298.0,76291.0,0.00167]
[1731008342643,0.15524102,76298.0,76292.0,0.19677938]
[1731008342845,0.15524102,76298.0,76291.0,0.00167]
[1731008343042,0.15524102,76298.0,76293.0,0.00219874]
[1731008343264,0.15524102,76298.0,76291.0,0.00167]
[1731008344515,0.13224102,76298.0,76291.0,0.00167]
[1731008344709,0.1281,76303.0,76297.0,0.000834]
[1731008344949,0.20669738,76314.0,76297.0,0.000834]
[1731008344950,0.01945658,76312.0,76303.0,8.2e-05]
[1731008345121,0.24327938,76314.0,76300.0,0.1513517]
[1731008345122,0.24327938,76314.0,76308.0,8.2e-05]
[1731008345262,0.0465,76314.0,76308.0,8.2e-05]
[1731008347679,0.0821,76319.0,76308.0,8.2e-05]
[1731008347877,0.000834,76322.0,76311.0,8.2e-05]
[1731008348079,0.000834,76322.0,76320.0,8.2e-05]
[1731008348722,0.000834,76322.0,76312.0,0.100082]
[1731008348924,0.000834,76322.0,76301.0,0.23132173]
[1731008348925,0.000834,76322.0,76314.0,0.1]
[1731008349120,0.000834,76322.0,76315.0,0.0021629]
[1731008349322,0.048,76321.0,76311.0,8.2e-05]
[1731008349521,0.20954102,76320.0,76303.0,8.2e-05]
[1731008349774,0.20954102,76320.0,76302.0,0.1]
[1731008349775,0.004918,76315.0,76304.0,0.00215918]
[1731008350013,0.005,76306.0,76304.0,0.00215918]
[1731008350183,0.005,76306.0,76297.0,0.03583728]
[1731008350184,0.13224102,76305.0,76297.0,0.03583728]
[1731008350338,0.13224102,76305.0,76302.0,0.19677938]
[1731008350549,0.13224102,76305.0,76303.0,0.0021577]
[1731008350751,0.13224102,76305.0,76297.0,0.000834]
[1731008350988,0.1044,76298.0,76297.0,0.000834]
[1731008351182,0.1044,76298.0,76291.0,0.00167]
[1731008351183,0.014918,76292.0,76291.0,0.00167]
[1731008351380,0.014918,76292.0,76273.0,0.19677938]
[1731008351381,0.005,76278.0,76273.0,0.19677938]
[1731008351586,0.005,76281.0,76274.0,0.00219086]
[1731008351587,0.13724102,76277.0,76274.0,0.00219086]
[1731008351844,0.005,76266.0,76263.0,0.000834]
[1731008352089,0.037918,76264.0,76263.0,0.000834]
[1731008352283,0.20251009,76264.0,76263.0,0.000834]
[1731008352491,0.18956314,76264.0,76263.0,0.000834]
[1731008352688,0.17015902,76264.0,76263.0,0.000834]
[1731008353261,0.13724102,76264.0,76263.0,0.000834]
[1731008353462,0.005,76268.0,76263.0,0.000834]
[1731008353621,0.13224102,76267.0,76263.0,0.000834]
[1731008353825,0.03914812,76268.0,76263.0,0.000834]
[1731008354024,0.13724102,76268.0,76263.0,0.000834]
[1731008354282,0.19677938,76277.0,76263.0,0.000834]
[1731008354283,0.005,76264.0,76263.0,0.000834]
[1731008354434,0.13724102,76264.0,76263.0,0.000834]
[1731008354634,0.17015902,76264.0,76263.0,0.000834]
[1731008355684,0.20524561,76264.0,76263.0,0.000834]
[1731008356998,0.13224102,76264.0,76263.0,0.000834]
[1731008357827,0.13724102,76264.0,76263.0,0.000834]
[1731008358042,0.16024102,76264.0,76263.0,0.000834]
[1731008359933,0.02425626,76271.0,76263.0,0.000834]
[1731008360127,0.13224102,76270.0,76263.0,0.000834]
[1731008360388,0.005,76268.0,76263.0,0.000834]
[1731008360600,0.125,76272.0,76263.0,0.000834]
[1731008360601,0.005,76271.0,76263.0,0.000834]
[1731008360732,0.19677938,76270.0,76263.0,0.000834]
[1731008360971,0.005,76271.0,76263.0,0.000834]
[1731008361677,0.005,76271.0,76264.0,0.00206722]
[1731008362368,0.16015902,76270.0,76264.0,0.00206722]
[1731008362635,0.0193252,76269.0,76263.0,0.000834]
[1731008362855,0.13224102,76268.0,76263.0,0.000834]
[1731008363095,0.004918,76265.0,76263.0,0.000834]
[1731008363335,0.1513517,76269.0,76263.0,0.000834]
[1731008363336,0.20231009,76264.0,76263.0,0.000834]
[1731008363549,0.17015902,76264.0,76263.0,0.000834]
[1731008363810,0.18948117,76264.0,76263.0,0.000834]
[1731008367038,0.15156317,76264.0,76263.0,0.000834]
[1731008367251,0.005,76269.0,76263.0,0.000834]
[1731008367465,0.13224102,76268.0,76263.0,0.000834]
[1731008368209,0.014918,76264.0,76263.0,0.000834]
[1731008368421,0.16647146,76264.0,76263.0,0.000834]
[1731008368643,0.19765309,76264.0,76263.0,0.000834]
[1731008369553,0.19765309,76264.0,76246.0,0.001484]
[1731008369554,0.037918,76247.0,76246.0,0.19826338]
[1731008369776,0.17954982,76247.0,76246.0,0.19826338]
[1731008369985,0.16515902,76247.0,76246.0,0.19826338]
[1731008370202,0.18946756,76247.0,76246.0,0.001484]
[1731008370454,0.17015902,76247.0,76246.0,0.001484]
[1731008370690,0.18946394,76247.0,76246.0,0.001484]
[1731008371096,0.13224102,76247.0,76246.0,0.001484]
[1731008372032,0.023,76253.0,76246.0,0.001484]
[1731008372248,0.02431188,76262.0,76246.0,0.001484]
[1731008372249,0.005,76257.0,76246.0,0.001484]
[1731008372467,0.005,76250.0,76246.0,0.001484]
[1731008372699,0.005,76247.0,76246.0,0.001484]
[1731008372939,0.13724102,76247.0,76246.0,0.001484]
[1731008373184,0.14215902,76247.0,76246.0,0.001484]
[1731008373417,0.16145436,76247.0,76246.0,0.001484]
[1731008373597,0.18445436,76247.0,76246.0,0.001484]
[1731008374166,0.18945436,76247.0,76246.0,0.001484]
[1731008374927,0.18943726,76247.0,76246.0,0.001484]
[1731008375263,0.17014192,76247.0,76246.0,0.001484]
[1731008375504,0.18944073,76247.0,76246.0,0.001484]
[1731008375728,0.35265157,76247.0,76246.0,0.001484]
[1731008376345,0.36083659,76247.0,76246.0,0.001484]
[1731008377233,0.3801586,76247.0,76246.0,0.001484]
[1731008377831,0.4326106,76247.0,76246.0,0.001484]
[1731008378060,0.4957496,76247.0,76246.0,0.001484]
[1731008378246,0.4346106,76247.0,76246.0,0.001484]
[1731008378453,0.44279567,76247.0,76246.0,0.001484]
[1731008378725,0.44079567,76247.0,76246.0,0.001484]
[1731008379664,0.45844573,76247.0,76246.0,0.001484]
[1731008379884,0.85844573,76247.0,76246.0,0.001484]
[1731008380107,0.97910341,76247.0,76246.0,0.001484]
[1731008380786,0.97710341,76247.0,76246.0,0.001484]
[1731008380984,0.97910341,76247.0,76246.0,0.001484]
[1731008381416,0.97910341,76247.0,76236.0,0.19677938]
[1731008381417,0.0149009,76239.0,76236.0,0.19677938]
[1731008381658,0.2252777,76239.0,76236.0,0.19677938]
[1731008381885,0.05513578,76239.0,76237.0,0.19677938]
[1731008382106,0.04694937,76239.0,76235.0,0.001484]
[1731008382329,0.04694937,76239.0,76238.0,0.00362527]
[1731008382554,0.04694937,76239.0,76238.0,0.001484]
[1731008383241,0.06011728,76239.0,76238.0,0.001484]
[1731008383611,0.06011763,76239.0,76238.0,0.001484]
[1731008383852,0.21539809,76239.0,76238.0,0.001484]
[1731008384909,0.19239809,76239.0,76238.0,0.001484]
[1731008385313,0.17922985,76239.0,76238.0,0.001484]
[1731008385524,0.02756353,76239.0,76238.0,0.001484]
[1731008385701,0.01940142,76239.0,76238.0,0.00955786]
[1731008386218,0.00818339,76254.0,76246.0,8.2e-05]
[1731008386384,0.19677938,76255.0,76249.0,8.2e-05]
[1731008386584,0.19677938,76255.0,76250.0,0.00222945]
[1731008386823,0.004918,76271.0,76254.0,8.2e-05]
[1731008387054,0.01940249,76262.0,76257.0,8.2e-05]
[1731008387274,0.01940249,76261.0,76257.0,8.2e-05]
[1731008387453,0.01940249,76260.0,76257.0,8.2e-05]
[1731008387648,0.0049829,76273.0,76257.0,8.2e-05]
[1731008387973,0.03398989,76269.0,76257.0,8.2e-05]
[1731008388206,0.00167,76263.0,76257.0,8.2e-05]
[1731008388390,0.01940211,76262.0,76257.0,8.2e-05]
[1731008389227,0.00167,76263.0,76257.0,8.2e-05]
[1731008389433,0.00167,76263.0,76261.0,8.2e-05]
[1731008390328,0.00167,76263.0,76251.0,0.1]
[1731008390329,0.00167,76263.0,76259.0,8.2e-05]
[1731008390590,0.0193982,76262.0,76259.0,8.2e-05]
[1731008390845,0.00167,76263.0,76259.0,8.2e-05]
[1731008391090,0.01939953,76262.0,76261.0,8.2e-05]
[1731008391305,0.00167,76263.0,76261.0,8.2e-05]
[1731008391549,0.19677938,76262.0,76255.0,8.2e-05]
[1731008391774,0.19677938,76262.0,76251.0,0.03431219]
[1731008391775,0.00167,76263.0,76257.0,8.2e-05]
[1731008392228,0.01940285,76262.0,76257.0,8.2e-05]
[1731008392417,0.00167,76263.0,76257.0,8.2e-05]
[1731008392635,0.00167,76263.0,76257.0,0.03468514]
[1731008392850,0.00167,76263.0,76257.0,8.2e-05]
[1731008393098,0.001654,76263.0,76261.0,8.2e-05]
[1731008393574,0.001654,76263.0,76262.0,8.2e-05]
[1731008395855,0.001654,76263.0,76262.0,0.03381585]